fUST/lending_fUST_20240906
["ID","MTS","AMOUNT","RATE_DAILY","PERIOD"]
[337395839,1725637853939,-500.0,0.00020273,2]
[337395840,1725637853953,-698.45,0.00020273,2]
[337395841,1725637853963,-568.78,0.00020273,2]
[337395842,1725637853972,-500.0,0.00020273,2]
[337395843,1725637853983,-500.0,0.00020273,2]
[337395844,1725637853993,-500.0,0.00020273,2]
[337395845,1725637854003,-1076.01,0.00020273,2]
[337395846,1725637854012,-592.42,0.00020273,2]
[337395847,1725637854023,-672.85,0.00020273,2]
[337395848,1725637854033,-500.0,0.00020273,2]
[337395849,1725637854043,-1356.83,0.00020273,2]
[337395850,1725637854053,-500.0,0.00020273,2]
[337395851,1725637854063,-500.0,0.00020273,2]
[337395852,1725637854073,-500.0,0.00020273,2]
[337395853,1725637854082,-2699.8,0.00020273,2]
[337395854,1725637854093,-1437.73,0.00020273,2]
[337395855,1725637854103,-531.35,0.00020273,2]
[337395856,1725637854112,-576.26226646,0.00020273,2]
[337395857,1725637854122,-1040.53,0.00020273,2]
[337395858,1725637854132,-500.0,0.00020273,2]
[337395859,1725637854142,-4531.3,0.00020273,2]
[337395860,1725637854152,-500.0,0.00020273,2]
[337395861,1725637854162,-1058.47,0.00020273,2]
[337395862,1725637854172,-500.0,0.00020273,2]
[337395863,1725637854183,-500.0,0.00020273,2]
[337395864,1725637854194,-30732.9,0.00020273,2]
[337395865,1725637854206,-561.59,0.00020273,2]
[337395866,1725637854216,-500.0,0.00020273,2]
[337395867,1725637854226,-500.0,0.00020273,2]
[337395868,1725637854236,-500.0,0.00020273,2]
[337395869,1725637854247,-603.08,0.00020273,2]
[337395870,1725637854260,-588.17,0.00020273,2]
[337395871,1725637854271,-939.45,0.00020273,2]
[337395872,1725637854282,-500.0,0.00020273,2]
[337395873,1725637854292,-504.15,0.00020273,2]
[337395874,1725637854302,-500.0,0.00020273,2]
[337395875,1725637854314,-500.0,0.00020273,2]
[337395876,1725637854477,-500.0,0.00020273,2]
[337395877,1725637854488,-752.49,0.00020273,2]
[337395878,1725637854497,-500.0,0.00020273,2]
[337395879,1725637854507,-500.0,0.00020273,2]
[337395880,1725637854518,-899.58,0.00020273,2]
[337395881,1725637854527,-539.66,0.00020273,2]
[337395882,1725637854536,-500.0,0.00020273,2]
[337395883,1725637854546,-500.0,0.00020273,2]
[337395884,1725637854555,-500.0,0.00020273,2]
[337395885,1725637854565,-500.0,0.00020273,2]
[337395886,1725637854574,-22297.85,0.00020273,2]
[337395887,1725637854586,-907.04,0.00020273,2]
[337395888,1725637854595,-698.46,0.00020273,2]
[337395889,1725637854606,-500.0,0.00020273,2]
[337395890,1725637854617,-568.46,0.00020273,2]
[337395891,1725637854629,-500.0,0.00020273,2]
[337395892,1725637854640,-506.18,0.00020273,2]
[337395893,1725637854650,-500.0,0.00020273,2]
[337395894,1725637854662,-779.9,0.00020273,2]
[337395895,1725637854671,-500.0,0.00020273,2]
[337395896,1725637854680,-874.99,0.00020273,2]
[337395897,1725637854690,-500.0,0.00020273,2]
[337395898,1725637854701,-500.0,0.00020273,2]
[337395899,1725637854710,-500.0,0.00020273,2]
[337395900,1725637854719,-500.0,0.00020273,2]
[337395901,1725637854729,-627.07,0.00020273,2]
[337395902,1725637854740,-1000.0,0.00020321,2]
[337395903,1725637854751,-385.64,0.00020518,3]
[337395904,1725637854762,-500.0,0.00020547,2]
[337395905,1725637854773,-370.79,0.00020547,2]
[337395906,1725637854784,-500.0,0.00020547,2]
[337395907,1725637854795,-500.0,0.00020547,2]
[337395908,1725637854807,-500.0,0.00020547,2]
[337395909,1725637854816,-500.0,0.00020547,2]
[337395910,1725637854826,-500.0,0.00020547,2]
[337395911,1725637854836,-500.0,0.00020547,2]
[337395912,1725637854847,-836.85,0.00020547,2]
[337395913,1725637854858,-500.0,0.00020547,2]
[337395914,1725637854869,-500.0,0.00020547,2]
[337395915,1725637854881,-500.0,0.00020547,2]
[337395916,1725637854893,-500.0,0.00020547,2]
[337395917,1725637854904,-500.0,0.00020547,2]
[337395918,1725637854914,-500.0,0.00020547,2]
[337395919,1725637854925,-535.98,0.00020547,2]
[337395920,1725637854936,-500.0,0.00020547,2]
[337395921,1725637854947,-500.0,0.00020547,2]
[337395922,1725637854959,-500.0,0.00020547,2]
[337395923,1725637854968,-552.05,0.00020547,2]
[337395924,1725637854978,-500.0,0.00020547,2]
[337395925,1725637854988,-500.0,0.00020547,2]
[337395926,1725637854998,-500.0,0.00020547,2]
[337395927,1725637855008,-500.0,0.00020547,2]
[337395928,1725637855018,-504.32,0.00020547,2]
[337395929,1725637855027,-938.12,0.00020547,2]
[337395930,1725637855037,-500.0,0.00020547,2]
[337395931,1725637855047,-500.0,0.00020547,2]
[337395932,1725637855057,-673.95,0.00020547,2]
[337395933,1725637855066,-500.0,0.00020547,2]
[337395934,1725637855075,-683.27,0.00020547,2]
[337395935,1725637855086,-825.03,0.00020547,2]
[337395936,1725637855096,-500.0,0.00020547,2]
[337395937,1725637855106,-500.0,0.00020547,2]
[337395938,1725637855117,-500.0,0.00020547,2]
[337395939,1725637855127,-500.0,0.00020547,2]
[337395940,1725637855136,-500.0,0.00020547,2]
[337395941,1725637855146,-500.0,0.00020547,2]
[337395942,1725637855155,-738.46,0.00020547,2]
[337395943,1725637855164,-500.0,0.00020547,2]
[337395944,1725637855174,-27892.12,0.00020547,2]
[337395945,1725637855184,-500.0,0.00020547,2]
[337395946,1725637855194,-561.56,0.00020547,2]
[337395947,1725637855205,-500.0,0.00020547,2]
[337395948,1725637855215,-3589.64,0.00020547,2]
[337395949,1725637855224,-500.0,0.00020547,2]
[337395950,1725637855235,-500.0,0.00020547,2]
[337395951,1725637855248,-12189.28,0.00020547,2]
[337395952,1725637855259,-500.0,0.00020547,2]
[337395953,1725637855270,-500.0,0.00020547,2]
[337395954,1725637855279,-500.0,0.00020547,2]
[337395955,1725637855289,-866.56,0.00020547,2]
[337395956,1725637855298,-500.0,0.00020547,2]
[337395957,1725637855309,-551.9,0.00020547,2]
[337395958,1725637855318,-500.0,0.00020547,2]
[337395959,1725637855328,-1019.03,0.00020547,2]
[337395960,1725637855339,-500.0,0.00020547,2]
[337395961,1725637855350,-848.14,0.00020547,2]
[337395962,1725637855361,-878.37,0.00020547,2]
[337395963,1725637855370,-1588.89,0.00020547,2]
[337395964,1725637855379,-1086.26,0.00020547,2]
[337395965,1725637855389,-500.0,0.00020547,2]
[337395966,1725637855399,-500.0,0.00020547,2]
[337395967,1725637855409,-529.8,0.00020547,2]
[337395968,1725637855419,-500.0,0.00020547,2]
[337395969,1725637855430,-678.25,0.00020547,2]
[337395970,1725637855440,-500.0,0.00020547,2]
[337395971,1725637855451,-525.41,0.00020547,2]
[337395972,1725637855460,-500.0,0.00020547,2]
[337395973,1725637855470,-1379.51,0.00020547,2]
[337395974,1725637855479,-1407.13,0.00020547,2]
[337395975,1725637855489,-500.0,0.00020547,2]
[337395976,1725637855498,-500.0,0.00020547,2]
[337395977,1725637855508,-641.83,0.00020547,2]
[337395978,1725637855518,-500.0,0.00020547,2]
[337395979,1725637855527,-1061.22,0.00020547,2]
[337395980,1725637855536,-558.74,0.00020547,2]
[337395981,1725637855546,-1115.03,0.00020547,2]
[337395982,1725637855555,-1902.32,0.00020547,2]
[337395983,1725637855564,-698.45,0.00020547,2]
[337395984,1725637855574,-568.78,0.00020547,2]
[337395985,1725637855584,-500.0,0.00020547,2]
[337395986,1725637855594,-500.0,0.00020547,2]
[337395987,1725637855604,-1076.01,0.00020547,2]
[337395988,1725637855614,-592.42,0.00020547,2]
[337395989,1725637855624,-672.85,0.00020547,2]
[337395990,1725637855633,-500.0,0.00020547,2]
[337395991,1725637855644,-1356.83,0.00020547,2]
[337395992,1725637855653,-500.0,0.00020547,2]
[337395993,1725637855663,-500.0,0.00020547,2]
[337395994,1725637855674,-2699.8,0.00020547,2]
[337395995,1725637855684,-1437.73,0.00020547,2]
[337395996,1725637855694,-531.35,0.00020547,2]
[337395997,1725637855705,-1040.53,0.00020547,2]
[337395998,1725637855716,-4531.3,0.00020547,2]
[337395999,1725637855728,-500.0,0.00020547,2]
[337396000,1725637855740,-1058.47,0.00020547,2]
[337396001,1725637855751,-500.0,0.00020547,2]
[337396002,1725637855761,-30732.9,0.00020547,2]
[337396003,1725637855771,-500.0,0.00020547,2]
[337396004,1725637855783,-561.59,0.00020547,2]
[337396005,1725637855794,-513.67779136,0.00020547,2]
[337396006,1725637855807,-500.0,0.00020547,2]
[337396007,1725637855820,-500.0,0.00020547,2]
[337396008,1725637855831,-603.08,0.00020547,2]
[337396009,1725637855844,-588.17,0.00020547,2]
[337396010,1725637855854,-939.45,0.00020547,2]
[337396011,1725637855864,-500.0,0.00020547,2]
[337396012,1725637855874,-504.15,0.00020547,2]
[337396013,1725637855885,-500.38,0.00020547,2]
[337396014,1725637855895,-449.04996765,0.00020547,2]
[337396015,1725637855906,-752.49,0.00020547,2]
[337396016,1725637855916,-500.0,0.00020547,2]
[337396017,1725637855926,-500.0,0.00020547,2]
[337396018,1725637855938,-899.58,0.00020547,2]
[337396019,1725637855949,-539.66,0.00020547,2]
[337396020,1725637855961,-500.0,0.00020547,2]
[337396021,1725637855971,-500.0,0.00020547,2]
[337396022,1725637855980,-500.0,0.00020547,2]
[337396023,1725637855990,-500.0,0.00020547,2]
[337396024,1725637856000,-22297.85,0.00020547,2]
[337396025,1725637856010,-907.04,0.00020547,2]
[337396026,1725637856020,-698.46,0.00020547,2]
[337396027,1725637856030,-500.0,0.00020547,2]
[337396028,1725637856040,-568.46,0.00020547,2]
[337396029,1725637856051,-505.6175626,0.00020547,2]
[337396030,1725637856061,-506.18,0.00020547,2]
[337396031,1725637856070,-500.0,0.00020547,2]
[337396032,1725637856080,-779.9,0.00020547,2]
[337396033,1725637856093,-874.99,0.00020547,2]
[337396034,1725637856104,-597.24,0.00020547,2]
[337396035,1725637856116,-500.0,0.00020547,2]
[337396036,1725637856129,-500.0,0.00020547,2]
[337396037,1725637856140,-500.0,0.00020547,2]
[337396038,1725637856150,-627.07,0.00020547,2]
[337396039,1725637856160,-500.0,0.00020821,2]
[337396040,1725637856170,-500.0,0.00020821,2]
[337396041,1725637856180,-500.0,0.00020821,2]
[337396042,1725637856190,-500.0,0.00020821,2]
[337396043,1725637856199,-500.0,0.00020821,2]
[337396044,1725637856209,-500.0,0.00020821,2]
[337396045,1725637856219,-223.79935173,0.00020821,2]
[337396046,1725637856230,-836.85,0.00020821,2]
[337396047,1725637856240,-500.0,0.00020821,2]
[337396048,1725637856253,-500.0,0.00020821,2]
[337396049,1725637856263,-230.64292345,0.00020821,2]
[337396050,1725637856273,-500.0,0.00020821,2]
[337396051,1725637856282,-169.05477709,0.00020821,2]
[337396052,1725637856291,-500.0,0.00020821,2]
[337396053,1725637856301,-535.98,0.00020821,2]
[337396054,1725637856312,-338.15207619,0.00020821,2]
[337396055,1725637856323,-500.0,0.00020821,2]
[337396056,1725637856334,-644.34468893,0.00020821,2]
[337396057,1725637856345,-552.05,0.00020821,2]
[337396058,1725637856361,-500.0,0.00020821,2]
[337396059,1725637856371,-500.0,0.00020821,2]
[337396060,1725637856380,-500.0,0.00020821,2]
[337396061,1725637856390,-500.0,0.00020821,2]
[337396062,1725637856399,-504.32,0.00020821,2]
[337396063,1725637856410,-938.12,0.00020821,2]
[337396064,1725637856419,-500.0,0.00020821,2]
[337396065,1725637856431,-500.0,0.00020821,2]
[337396066,1725637856440,-673.95,0.00020821,2]
[337396067,1725637856450,-500.0,0.00020821,2]
[337396068,1725637856463,-683.27,0.00020821,2]
[337396069,1725637856472,-825.03,0.00020821,2]
[337396070,1725637856483,-500.0,0.00020821,2]
[337396071,1725637856493,-500.0,0.00020821,2]
[337396072,1725637856503,-500.0,0.00020821,2]
[337396073,1725637856513,-500.0,0.00020821,2]
[337396074,1725637856523,-500.0,0.00020821,2]
[337396075,1725637856533,-500.0,0.00020821,2]
[337396076,1725637856543,-738.46,0.00020821,2]
[337396077,1725637856553,-500.0,0.00020821,2]
[337396078,1725637856564,-27892.12,0.00020821,2]
[337396079,1725637856574,-500.0,0.00020821,2]
[337396080,1725637856584,-561.56,0.00020821,2]
[337396081,1725637856595,-500.0,0.00020821,2]
[337396082,1725637856604,-3589.64,0.00020821,2]
[337396083,1725637856615,-475.16849481,0.00020821,2]
[337396084,1725637856625,-500.0,0.00020821,2]
[337396085,1725637856635,-12189.28,0.00020821,2]
[337396086,1725637856646,-500.0,0.00020821,2]
[337396087,1725637856657,-500.0,0.00020821,2]
[337396088,1725637856666,-866.56,0.00020821,2]
[337396089,1725637856676,-500.0,0.00020821,2]
[337396090,1725637856686,-500.0,0.00020821,2]
[337396091,1725637856696,-551.9,0.00020821,2]
[337396092,1725637856712,-500.0,0.00020821,2]
[337396093,1725637856723,-1019.03,0.00020821,2]
[337396094,1725637856733,-500.0,0.00020821,2]
[337396095,1725637856743,-848.14,0.00020821,2]
[337396096,1725637856753,-878.37,0.00020821,2]
[337396097,1725637856763,-1086.26,0.00020821,2]
[337396098,1725637856772,-1588.89,0.00020821,2]
[337396099,1725637856782,-500.0,0.00020821,2]
[337396100,1725637856792,-500.0,0.00020821,2]
[337396101,1725637856803,-529.8,0.00020821,2]
[337396102,1725637856814,-500.0,0.00020821,2]
[337396103,1725637856825,-678.25,0.00020821,2]
[337396104,1725637856837,-500.0,0.00020821,2]
[337396105,1725637856848,-525.41,0.00020821,2]
[337396106,1725637856858,-500.0,0.00020821,2]
[337396107,1725637856869,-1379.51,0.00020821,2]
[337396108,1725637856879,-1407.13,0.00020821,2]
[337396109,1725637856890,-500.0,0.00020821,2]
[337396110,1725637856900,-500.0,0.00020821,2]
[337396111,1725637856911,-641.83,0.00020821,2]
[337396112,1725637856921,-500.0,0.00020821,2]
[337396113,1725637856932,-1061.22,0.00020821,2]
[337396114,1725637856983,-558.74,0.00020821,2]
[337396115,1725637856992,-1115.03,0.00020821,2]
[337396116,1725637857004,-1902.32,0.00020821,2]
[337396117,1725637857015,-698.45,0.00020821,2]
[337396118,1725637857026,-568.78,0.00020821,2]
[337396119,1725637857037,-500.0,0.00020821,2]
[337396120,1725637857047,-500.0,0.00020821,2]
[337396121,1725637857057,-1076.01,0.00020821,2]
[337396122,1725637857068,-592.42,0.00020821,2]
[337396123,1725637857078,-672.85,0.00020821,2]
[337396124,1725637857087,-500.0,0.00020821,2]
[337396125,1725637857097,-1356.83,0.00020821,2]
[337396126,1725637857108,-500.0,0.00020821,2]
[337396127,1725637857119,-500.0,0.00020821,2]
[337396128,1725637857129,-2699.8,0.00020821,2]
[337396129,1725637857140,-1437.73,0.00020821,2]
[337396130,1725637857151,-531.35,0.00020821,2]
[337396131,1725637857162,-1040.53,0.00020821,2]
[337396132,1725637857171,-4531.3,0.00020821,2]
[337396133,1725637857181,-500.0,0.00020821,2]
[337396134,1725637857191,-1058.47,0.00020821,2]
[337396135,1725637857202,-500.0,0.00020821,2]
[337396136,1725637857214,-30732.9,0.00020821,2]
[337396137,1725637857223,-561.59,0.00020821,2]
[337396138,1725637857233,-500.0,0.00020821,2]
[337396139,1725637857242,-553.68,0.00020821,2]
[337396140,1725637857252,-500.0,0.00020821,2]
[337396141,1725637857263,-603.08,0.00020821,2]
[337396142,1725637857273,-588.17,0.00020821,2]
[337396143,1725637857282,-939.45,0.00020821,2]
[337396144,1725637857292,-500.0,0.00020821,2]
[337396145,1725637857301,-504.15,0.00020821,2]
[337396146,1725637857310,-752.49,0.00020821,2]
[337396147,1725637857320,-500.0,0.00020821,2]
[337396148,1725637857329,-238.26,0.00020821,2]
[337396149,1725637857339,-899.58,0.00020821,2]
[337396150,1725637857355,-539.66,0.00020821,2]
[337396151,1725637857364,-500.0,0.00020821,2]
[337396152,1725637857373,-500.0,0.00020821,2]
[337396153,1725637857383,-500.0,0.00020821,2]
[337396154,1725637857394,-410.94640588,0.00020821,2]
[337396155,1725637857404,-22297.85,0.00020821,2]
[337396156,1725637857414,-907.04,0.00020821,2]
[337396157,1725637857426,-698.46,0.00020821,2]
[337396158,1725637857437,-500.0,0.00020821,2]
[337396159,1725637857447,-568.46,0.00020821,2]
[337396160,1725637857458,-506.18,0.00020821,2]
[337396161,1725637857468,-500.0,0.00020821,2]
[337396162,1725637857479,-779.9,0.00020821,2]
[337396163,1725637857489,-874.99,0.00020821,2]
[337396164,1725637857498,-500.0,0.00020821,2]
[337396165,1725637857508,-500.0,0.00020821,2]
[337396166,1725637857518,-627.07,0.00020821,2]
[337396167,1725637857528,-351.41811,0.00020986,2]
[337396168,1725637857538,-150.0,0.00021,2]
[337396169,1725637857547,-1500.0,0.00021022,2]
[337396170,1725637857558,-155.0,0.0002109,5]
[337396171,1725637857568,-500.0,0.00021095,2]
[337396172,1725637857578,-500.0,0.00021095,2]
[337396173,1725637857588,-500.0,0.00021095,2]
[337396174,1725637857597,-609.14724042,0.00021095,2]
[337396175,1725637857606,-500.0,0.00021095,2]
[337396176,1725637857616,-500.0,0.00021095,2]
[337396177,1725637857626,-836.85,0.00021095,2]
[337396178,1725637857636,-500.0,0.00021095,2]
[337396179,1725637857647,-500.0,0.00021095,2]
[337396180,1725637857656,-500.0,0.00021095,2]
[337396181,1725637857667,-500.0,0.00021095,2]
[337396182,1725637857676,-535.98,0.00021095,2]
[337396183,1725637857686,-500.0,0.00021095,2]
[337396184,1725637857695,-552.05,0.00021095,2]
[337396185,1725637857708,-500.0,0.00021095,2]
[337396186,1725637857718,-306.92,0.00021095,2]
[337396187,1725637857728,-500.0,0.00021095,2]
[337396188,1725637857738,-500.0,0.00021095,2]
[337396189,1725637857748,-504.32,0.00021095,2]
[337396190,1725637857759,-938.12,0.00021095,2]
[337396191,1725637857770,-500.0,0.00021095,2]
[337396192,1725637857780,-500.0,0.00021095,2]
[337396193,1725637857790,-673.95,0.00021095,2]
[337396194,1725637857800,-500.0,0.00021095,2]
[337396195,1725637857810,-683.27,0.00021095,2]
[337396196,1725637857820,-825.03,0.00021095,2]
[337396197,1725637857830,-500.0,0.00021095,2]
[337396198,1725637857840,-500.0,0.00021095,2]
[337396199,1725637857849,-500.0,0.00021095,2]
[337396200,1725637857858,-500.0,0.00021095,2]
[337396201,1725637857868,-222.96476027,0.00021095,2]
[337396202,1725637857878,-500.0,0.00021095,2]
[337396203,1725637857889,-738.46,0.00021095,2]
[337396204,1725637857899,-500.0,0.00021095,2]
[337396205,1725637857909,-27892.12,0.00021095,2]
[337396206,1725637857920,-500.0,0.00021095,2]
[337396207,1725637857930,-561.56,0.00021095,2]
[337396208,1725637857941,-543.90877767,0.00021095,2]
[337396209,1725637857951,-3589.64,0.00021095,2]
[337396210,1725637857963,-500.0,0.00021095,2]
[337396211,1725637857973,-12189.28,0.00021095,2]
[337396212,1725637857983,-500.0,0.00021095,2]
[337396213,1725637857994,-500.0,0.00021095,2]
[337396214,1725637858004,-866.56,0.00021095,2]
[337396215,1725637858014,-500.0,0.00021095,2]
[337396216,1725637858023,-500.0,0.00021095,2]
[337396217,1725637858033,-551.9,0.00021095,2]
[337396218,1725637858044,-500.0,0.00021095,2]
[337396219,1725637858054,-1019.03,0.00021095,2]
[337396220,1725637858063,-500.0,0.00021095,2]
[337396221,1725637858073,-848.14,0.00021095,2]
[337396222,1725637858083,-878.37,0.00021095,2]
[337396223,1725637858093,-1086.26,0.00021095,2]
[337396224,1725637858103,-1588.89,0.00021095,2]
[337396225,1725637858112,-620.26331675,0.00021095,2]
[337396226,1725637858122,-500.0,0.00021095,2]
[337396227,1725637858132,-529.8,0.00021095,2]
[337396228,1725637858142,-500.0,0.00021095,2]
[337396229,1725637858151,-678.25,0.00021095,2]
[337396230,1725637858160,-500.0,0.00021095,2]
[337396231,1725637858170,-525.41,0.00021095,2]
[337396232,1725637858180,-500.0,0.00021095,2]
[337396233,1725637858190,-1379.51,0.00021095,2]
[337396234,1725637858199,-1407.13,0.00021095,2]
[337396235,1725637858213,-500.0,0.00021095,2]
[337396236,1725637858225,-500.0,0.00021095,2]
[337396237,1725637858235,-641.83,0.00021095,2]
[337396238,1725637858244,-500.0,0.00021095,2]
[337396239,1725637858254,-1061.22,0.00021095,2]
[337396240,1725637858263,-558.74,0.00021095,2]
[337396241,1725637858273,-1115.03,0.00021095,2]
[337396242,1725637858283,-1902.32,0.00021095,2]
[337396243,1725637858293,-698.45,0.00021095,2]
[337396244,1725637858303,-568.78,0.00021095,2]
[337396245,1725637858313,-559.43,0.00021095,2]
[337396246,1725637858323,-500.0,0.00021095,2]
[337396247,1725637858333,-1076.01,0.00021095,2]
[337396248,1725637858343,-592.42,0.00021095,2]
[337396249,1725637858358,-535.76445986,0.00021095,2]
[337396250,1725637858669,-500.0,0.00019178,2]
[337396251,1725637858679,-500.8662381,0.00019178,2]
[337396252,1725637858689,-500.0,0.00019452,2]
[337396253,1725637858699,-500.0,0.00019726,2]
[337396254,1725637858709,-500.0,0.0002,2]
[337396255,1725637858720,-137.08554014,0.00021095,2]
[337396256,1725637858730,-500.0,0.00021095,2]
[337396257,1725637858740,-1356.83,0.00021095,2]
[337396258,1725637858751,-500.0,0.00021095,2]
[337396259,1725637858763,-500.0,0.00021095,2]
[337396260,1725637858773,-2699.8,0.00021095,2]
[337396261,1725637858783,-1437.73,0.00021095,2]
[337396262,1725637858793,-531.35,0.00021095,2]
[337396263,1725637858803,-1040.53,0.00021095,2]
[337396264,1725637858814,-4531.3,0.00021095,2]
[337396265,1725637858825,-500.0,0.00021095,2]
[337396266,1725637858835,-1058.47,0.00021095,2]
[337396267,1725637858845,-500.0,0.00021095,2]
[337396268,1725637858855,-30732.9,0.00021095,2]
[337396269,1725637858865,-561.59,0.00021095,2]
[337396270,1725637858875,-500.0,0.00021095,2]
[337396271,1725637858887,-603.08,0.00021095,2]
[337396272,1725637858898,-588.17,0.00021095,2]
[337396273,1725637858909,-939.45,0.00021095,2]
[337396274,1725637858919,-500.0,0.00021095,2]
[337396275,1725637858930,-504.15,0.00021095,2]
[337396276,1725637858941,-752.49,0.00021095,2]
[337396277,1725637858952,-500.0,0.00021095,2]
[337396278,1725637858965,-899.58,0.00021095,2]
[337396279,1725637858975,-539.66,0.00021095,2]
[337396280,1725637858986,-500.0,0.00021095,2]
[337396281,1725637858996,-500.0,0.00021095,2]
[337396282,1725637859006,-22297.85,0.00021095,2]
[337396283,1725637859017,-907.04,0.00021095,2]
[337396284,1725637859026,-698.46,0.00021095,2]
[337396285,1725637859037,-500.0,0.00021095,2]
[337396286,1725637859048,-568.46,0.00021095,2]
[337396287,1725637859058,-506.18,0.00021095,2]
[337396288,1725637859069,-500.0,0.00021095,2]
[337396289,1725637859082,-779.9,0.00021095,2]
[337396290,1725637859093,-874.99,0.00021095,2]
[337396291,1725637859103,-500.0,0.00021095,2]
[337396292,1725637859113,-627.07,0.00021095,2]
[337396293,1725637859124,-331.498477,0.000211,9]
[337396294,1725637859134,-1500.0,0.00021322,2]
[337396295,1725637859144,-500.0,0.00021368,2]
[337396296,1725637859154,-500.0,0.00021368,2]
[337396297,1725637859164,-500.0,0.00021368,2]
[337396298,1725637859174,-881.58,0.00021368,2]
[337396299,1725637859185,-500.0,0.00021368,2]
[337396300,1725637859195,-500.0,0.00021368,2]
[337396301,1725637859207,-500.0,0.00021368,2]
[337396302,1725637859217,-500.0,0.00021368,2]
[337396303,1725637859227,-500.0,0.00021368,2]
[337396304,1725637859238,-490.96411894,0.00021368,2]
[337396305,1725637859248,-500.0,0.00021368,2]
[337396306,1725637859258,-500.0,0.00021368,2]
[337396307,1725637859268,-500.0,0.00021368,2]
[337396308,1725637859279,-500.0,0.00021368,2]
[337396309,1725637859289,-500.0,0.00021368,2]
[337396310,1725637859299,-500.0,0.00021368,2]
[337396311,1725637859309,-569.87,0.00021368,2]
[337396312,1725637859320,-500.0,0.00021368,2]
[337396313,1725637859331,-500.0,0.00021368,2]
[337396314,1725637859342,-500.0,0.00021368,2]
[337396315,1725637859353,-500.0,0.00021368,2]
[337396316,1725637859367,-500.0,0.00021368,2]
[337396317,1725637859377,-500.0,0.00021368,2]
[337396318,1725637859387,-500.0,0.00021368,2]
[337396319,1725637859398,-500.0,0.00021368,2]
[337396320,1725637859409,-500.0,0.00021368,2]
[337396321,1725637859420,-500.0,0.00021368,2]
[337396322,1725637859430,-500.0,0.00021368,2]
[337396323,1725637859443,-500.0,0.00021368,2]
[337396324,1725637859452,-500.0,0.00021368,2]
[337396325,1725637859469,-500.0,0.00021368,2]
[337396326,1725637859481,-500.0,0.00021368,2]
[337396327,1725637859492,-500.0,0.00021368,2]
[337396328,1725637859505,-500.0,0.00021368,2]
[337396329,1725637859518,-750.3,0.00021368,2]
[337396330,1725637859530,-500.0,0.00021369,2]
[337396331,1725637859541,-500.0,0.00021369,2]
[337396332,1725637859551,-500.0,0.00021369,2]
[337396333,1725637859562,-500.0,0.00021369,2]
[337396334,1725637859571,-500.0,0.00021369,2]
[337396335,1725637859582,-836.85,0.00021369,2]
[337396336,1725637859591,-500.0,0.00021369,2]
[337396337,1725637859603,-500.0,0.00021369,2]
[337396338,1725637859612,-500.0,0.00021369,2]